bitfinex/quotes_BTCUSD_20240905
["timestamp","ask_amount","ask_price","bid_price","bid_amount"]
[1725561829905,0.177248,56679.0,56678.0,0.150632]
[1725561831940,0.000816,56679.0,56678.0,1.61808632]
[1725561833561,0.01843348,56695.0,56685.0,0.882067]
[1725561833838,0.01843348,56695.0,56685.0,1.62240332]
[1725561834053,0.01843348,56695.0,56685.0,1.78628816]
[1725561834920,0.01843348,56695.0,56685.0,1.515994]
[1725561835988,0.001817,56686.0,56685.0,1.524994]
[1725561836194,0.001817,56686.0,56685.0,1.521994]
[1725561836856,0.002817,56686.0,56685.0,1.535994]
[1725561842647,0.002817,56686.0,56685.0,1.183167]
[1725561843882,0.002817,56686.0,56685.0,0.83034]
[1725561844088,0.002817,56686.0,56685.0,0.477513]
[1725561844727,0.179227,56686.0,56685.0,0.3011]
[1725561844928,0.532047,56686.0,56685.0,0.3011]
[1725561845942,0.179227,56686.0,56685.0,0.3011]
[1725561847399,0.532047,56686.0,56685.0,0.3011]
[1725561847612,0.179227,56686.0,56685.0,0.3011]
[1725561848496,0.532047,56686.0,56685.0,0.3011]
[1725561848710,0.179227,56686.0,56685.0,0.3011]
[1725561849149,0.532047,56686.0,56685.0,0.3011]
[1725561850431,0.002817,56686.0,56685.0,0.3011]
[1725561851277,0.002817,56686.0,56685.0,0.1781]
[1725561851278,0.884867,56686.0,56685.0,0.1781]
[1725561854014,0.884867,56686.0,56685.0,0.023]
[1725561854015,1.34708818,56686.0,56685.0,0.023]
[1725561854261,1.37008818,56686.0,56685.0,0.023]
[1725561854936,1.37008818,56686.0,56685.0,0.014]
[1725561855148,0.882145,56680.0,56679.0,0.001632]
[1725561856454,0.883145,56680.0,56679.0,0.010632]
[1725561856722,0.884145,56680.0,56679.0,0.022632]
[1725561856933,0.883145,56680.0,56679.0,0.013632]
[1725561857583,0.882145,56680.0,56679.0,0.001632]
[1725561858302,0.530287,56680.0,56679.0,0.157232]
[1725561858714,0.529287,56680.0,56679.0,0.152232]
[1725561859626,0.176429,56680.0,56679.0,0.152232]
[1725561859838,0.529287,56680.0,56679.0,0.152232]
[1725561863220,0.529287,56680.0,56679.0,0.001632]
[1725561863420,1.258003,56680.0,56679.0,0.001632]
[1725561863648,1.358003,56680.0,56679.0,0.001632]
[1725561863867,1.710861,56680.0,56679.0,0.001632]
[1725561864086,1.767861,56680.0,56679.0,0.001632]
[1725561864328,1.8070947,56680.0,56679.0,0.001632]
[1725561864593,1.767861,56680.0,56679.0,0.001632]
[1725561864776,1.768861,56680.0,56679.0,0.001632]
[1725561865238,1.767861,56680.0,56679.0,0.001632]
[1725561865661,1.773861,56680.0,56679.0,0.002632]
[1725561866148,2.04852601,56680.0,56679.0,0.002632]
[1725561866353,3.22678632,56680.0,56679.0,0.002632]
[1725561866601,3.2137785,56680.0,56679.0,0.002632]
[1725561866815,3.2187785,56680.0,56679.0,0.003632]
[1725561867043,3.3505595,56680.0,56679.0,0.003632]
[1725561867551,3.2137785,56680.0,56679.0,0.002632]
[1725561867780,3.31818074,56680.0,56679.0,0.002632]
[1725561867995,3.33218074,56680.0,56679.0,0.003632]
[1725561868219,3.32618074,56680.0,56679.0,0.002632]
[1725561868452,3.23378936,56680.0,56679.0,0.002632]
[1725561868680,3.19458487,56680.0,56679.0,0.002632]
[1725561868891,3.32631631,56680.0,56679.0,0.002632]
[1725561869101,3.31231631,56680.0,56679.0,0.001632]
[1725561869313,3.32631631,56680.0,56679.0,0.001632]
[1725561869535,3.34022995,56680.0,56679.0,0.001632]
[1725561869752,3.22092493,56680.0,56679.0,0.001632]
[1725561869973,3.32622995,56680.0,56679.0,0.001632]
[1725561870195,2.49673493,56680.0,56679.0,0.001632]
[1725561870429,2.57369426,56680.0,56679.0,0.001632]
[1725561870679,2.63127587,56680.0,56679.0,0.001632]
[1725561871337,2.63327587,56680.0,56679.0,0.001632]
[1725561871548,2.65170935,56680.0,56679.0,0.001632]
[1725561872685,1.94318634,56680.0,56679.0,0.001632]
[1725561872907,2.02097035,56680.0,56679.0,0.001632]
[1725561873122,1.66811235,56680.0,56679.0,0.001632]
[1725561874044,1.66811235,56680.0,56679.0,0.158032]
[1725561874255,0.23686248,56680.0,56679.0,0.284032]
[1725561874473,0.04643348,56680.0,56679.0,0.284032]
[1725561874689,0.22286248,56680.0,56679.0,0.284032]
[1725561874940,0.58972048,56680.0,56679.0,0.284032]
[1725561875379,0.64772048,56680.0,56679.0,0.284032]
[1725561875587,0.64972048,56680.0,56679.0,0.284032]
[1725561875793,0.66372048,56680.0,56679.0,0.284032]
[1725561876006,0.64972048,56680.0,56679.0,0.284032]
[1725561876221,1.00257848,56680.0,56679.0,0.284032]
[1725561876644,1.00057848,56680.0,56679.0,0.284032]
[1725561878219,1.00157848,56680.0,56679.0,0.284032]
[1725561878644,1.00057848,56680.0,56679.0,0.284032]
[1725561879069,1.00257848,56680.0,56679.0,0.284032]
[1725561879298,1.00357848,56680.0,56679.0,0.284032]
[1725561882098,0.65072048,56680.0,56679.0,0.284032]
[1725561882303,0.29786248,56680.0,56679.0,0.284032]
[1725561882507,0.65072048,56680.0,56679.0,0.284032]
[1725561883130,0.64972048,56680.0,56679.0,0.284032]
[1725561883579,0.64972048,56680.0,56679.0,0.286032]
[1725561884210,0.11843348,56680.0,56679.0,0.286032]
[1725561884421,0.11843348,56680.0,56679.0,0.816328]
[1725561884422,0.01843348,56680.0,56679.0,0.816328]
[1725561884634,0.01843348,56680.0,56679.0,0.463464]
[1725561885543,0.01924948,56680.0,56679.0,0.287032]
[1725561887258,0.19567848,56680.0,56679.0,0.287032]
[1725561887536,0.01924948,56680.0,56679.0,0.287032]
[1725561887748,0.176429,56680.0,56679.0,0.287032]
[1725561889207,0.176426,56681.0,56679.0,0.161032]
[1725561889416,0.176426,56681.0,56680.0,0.1301]
[1725561890493,0.529277,56681.0,56680.0,0.1301]
[1725561890701,0.176426,56681.0,56680.0,0.1311]
[1725561893477,0.529277,56681.0,56680.0,0.1311]
[1725561893683,0.882128,56681.0,56680.0,0.1311]
[1725561900712,0.000816,56682.0,56681.0,0.633851]
[1725561900719,0.000816,56682.0,56681.0,0.810276]
[1725561900944,0.530083,56682.0,56681.0,0.281]
[1725561901177,0.882928,56682.0,56681.0,0.281]
[1725561901633,0.530083,56682.0,56681.0,0.281]
[1725561902132,0.000816,56682.0,56681.0,0.810276]
[1725561902378,0.000816,56682.0,56681.0,1.163127]
[1725561903062,0.000816,56682.0,56681.0,1.165127]
[1725561903303,0.000816,56682.0,56681.0,1.163127]
[1725561903549,0.000816,56682.0,56681.0,1.516978]
[1725561903782,0.000816,56682.0,56681.0,1.519978]
[1725561903783,0.001816,56682.0,56681.0,1.519978]
[1725561904012,0.001816,56682.0,56681.0,1.518978]
[1725561904237,0.002816,56682.0,56681.0,1.521978]
[1725561906093,0.17639,56693.0,56681.0,1.521978]
[1725561906094,0.176389,56693.0,56690.0,0.176396]
[1725561906305,0.176389,56693.0,56691.0,0.2866]
[1725561906525,0.176385,56694.0,56691.0,0.462994]
[1725561906828,0.176384,56695.0,56691.0,0.462994]
[1725561907279,0.176389,56693.0,56691.0,0.2866]
[1725561907493,0.176386,56694.0,56691.0,0.2866]
[1725561907715,0.176388,56693.0,56691.0,0.2866]
[1725561908141,0.176384,56695.0,56691.0,0.2866]
[1725561908832,0.176384,56695.0,56691.0,0.462992]
[1725561909058,0.176384,56695.0,56691.0,0.463992]
[1725561909284,0.176385,56694.0,56691.0,0.462992]
[1725561909493,0.177384,56695.0,56691.0,0.462994]
[1725561909678,0.001,56695.0,56692.0,0.1219]
[1725561909974,0.001,56695.0,56693.0,0.176386]
[1725561910215,0.001,56695.0,56694.0,0.462485]
[1725561910844,0.002,56695.0,56694.0,0.462485]
[1725561911061,0.001,56695.0,56694.0,0.462485]
[1725561911303,0.276377,56697.0,56694.0,0.462485]
[1725561911479,0.276377,56697.0,56694.0,0.466485]
[1725561911730,0.1,56697.0,56695.0,0.176381]
[1725561911937,0.1,56697.0,56694.0,0.1662]
[1725561912152,0.1,56698.0,56695.0,0.296081]
[1725561912363,0.276375,56698.0,56695.0,0.1197]
[1725561912569,0.1,56698.0,56695.0,0.1197]
[1725561912754,0.276373,56698.0,56695.0,0.1197]
[1725561912966,0.176377,56697.0,56695.0,0.1197]
[1725561913617,0.276373,56698.0,56695.0,0.1197]
[1725561914504,0.176376,56697.0,56695.0,0.1197]
[1725561914712,0.629121,56698.0,56695.0,0.1197]
[1725561914918,0.629121,56698.0,56695.0,0.1217]
[1725561915134,0.629121,56698.0,56695.0,0.298082]
[1725561915135,0.276373,56698.0,56695.0,0.298082]
[1725561915357,0.1,56698.0,56695.0,0.298082]
[1725561915571,0.276374,56698.0,56695.0,0.1217]
[1725561915781,0.1,56698.0,56696.0,0.176378]
[1725561916036,0.1,56698.0,56695.0,0.476464]
[1725561916037,0.1,56698.0,56697.0,0.176376]
[1725561916263,0.29130929,56701.0,56698.0,0.176371]
[1725561918642,0.100817,56701.0,56699.0,0.176368]
[1725561918883,0.105817,56701.0,56699.0,0.176368]
[1725561919090,0.282181,56701.0,56698.0,0.176372]
[1725561919502,0.280181,56701.0,56698.0,0.176372]
[1725561919713,0.103817,56701.0,56696.0,0.352757]
[1725561919959,0.105817,56701.0,56699.0,0.176369]
[1725561920144,0.282181,56701.0,56698.0,0.176372]
[1725561920393,0.279181,56701.0,56698.0,0.176372]
[1725561920625,0.279181,56701.0,56696.0,0.352757]
[1725561920626,0.176368,56700.0,56696.0,0.352757]
[1725561920839,0.179364,56701.0,56698.0,0.176371]
[1725561921058,0.003,56701.0,56699.0,0.176369]
[1725561921311,0.247068,56702.0,56699.0,0.176369]
[1725561921532,0.247068,56702.0,56697.0,0.352752]
[1725561921533,0.005,56701.0,56700.0,0.176366]
[1725561921753,0.005816,56701.0,56700.0,0.2759]
[1725561921968,0.002816,56701.0,56700.0,0.2759]
[1725561922195,0.002816,56701.0,56700.0,0.452266]
[1725561922408,0.003816,56701.0,56700.0,0.2759]
[1725561922860,0.280179,56701.0,56700.0,0.2759]
[1725561923074,0.103816,56701.0,56700.0,0.2759]
[1725561923284,0.105816,56701.0,56700.0,0.2759]
[1725561924171,0.102816,56701.0,56700.0,0.2759]
[1725561924412,0.105816,56701.0,56700.0,0.452266]
[1725561924625,0.005816,56701.0,56700.0,0.452266]
[1725561925098,0.005816,56701.0,56700.0,0.2759]
[1725561925338,0.005816,56701.0,56700.0,0.804999]
[1725561928779,0.005816,56701.0,56700.0,1.510465]
[1725561929246,0.02424948,56701.0,56700.0,1.510465]
[1725561929905,0.005816,56701.0,56700.0,1.510465]
[1725561930124,0.002816,56701.0,56700.0,1.510465]
[1725561930574,0.003816,56701.0,56700.0,1.515465]
[1725561930795,0.001816,56701.0,56700.0,1.515465]
[1725561931046,0.002816,56701.0,56700.0,1.521465]
[1725561933096,0.002816,56701.0,56700.0,0.463266]
[1725561933330,0.531906,56701.0,56700.0,0.2869]
[1725561933557,0.179179,56701.0,56700.0,0.2869]
[1725561935383,0.179179,56701.0,56700.0,0.288532]
[1725561936231,0.13237783,56701.0,56700.0,0.288532]
[1725561937392,0.48510483,56701.0,56700.0,0.012632]
[1725561937597,0.13237783,56701.0,56700.0,0.012632]
[1725561939595,0.48510483,56701.0,56700.0,0.012632]
[1725561946549,0.176363,56701.0,56700.0,0.012632]
[1725561946739,0.52909,56701.0,56700.0,0.012632]
[1725561947097,1.234544,56701.0,56700.0,0.012632]
[1725561947322,1.257544,56701.0,56700.0,0.012632]
[1725561948672,0.904817,56701.0,56700.0,0.012632]
[1725561948871,0.176352,56705.0,56700.0,0.281632]
[1725561949087,0.01843348,56703.0,56702.0,0.798079]
[1725561950764,0.01843348,56703.0,56702.0,1.503521]
[1725561950985,0.000817,56708.0,56707.0,0.881725]
[1725561951203,0.000817,56708.0,56707.0,1.150725]
[1725561952156,0.000817,56708.0,56707.0,1.503415]
[1725561952577,0.000817,56708.0,56707.0,1.507415]
[1725561953355,0.000817,56708.0,56707.0,1.510415]
[1725561958519,0.000817,56708.0,56707.0,0.805035]
[1725561961757,0.000817,56708.0,56707.0,0.452345]
[1725561961998,0.000817,56708.0,56707.0,0.805035]
[1725561962204,0.000817,56708.0,56707.0,1.157725]
[1725561963582,0.000817,56708.0,56707.0,0.452345]
[1725561964418,0.000817,56708.0,56707.0,0.805035]
[1725561964889,0.000817,56708.0,56707.0,0.452345]
[1725561969239,0.176336,56710.0,56707.0,0.452345]
[1725561969450,0.176332,56711.0,56707.0,0.452345]
[1725561969695,0.176332,56711.0,56708.0,0.176341]
[1725561970132,0.352654,56713.0,56709.0,0.176338]
[1725561970338,0.352651,56714.0,56709.0,0.176338]
[1725561970570,0.176329,56712.0,56709.0,0.176338]
[1725561970790,0.176326,56713.0,56709.0,0.176337]
[1725561971283,0.01843348,56715.0,56714.0,0.294123]
[1725561971505,0.01843348,56715.0,56714.0,0.447923]
[1725561971718,0.01843348,56715.0,56714.0,0.2716]
[1725561971928,0.54739348,56715.0,56714.0,0.2716]
[1725561972137,0.19475348,56715.0,56714.0,0.2716]
[1725561972580,0.19475348,56715.0,56714.0,0.1538]
[1725561973028,0.54739348,56715.0,56714.0,0.1538]
[1725561973254,1.27567348,56715.0,56714.0,0.001]
[1725561973490,1.37567348,56715.0,56714.0,0.001]
[1725561974311,0.176345,56707.0,56704.0,0.2716]
[1725561974533,0.529036,56707.0,56704.0,0.2716]
[1725561974752,0.176348,56706.0,56704.0,0.2716]
[1725561975233,0.35269,56707.0,56704.0,0.2716]
[1725561975423,0.176348,56706.0,56704.0,0.2756]
[1725561975679,0.176348,56706.0,56704.0,0.2806]
[1725561975920,0.176348,56706.0,56704.0,0.2716]
[1725561976145,0.199351,56705.0,56704.0,0.006]
[1725561976356,1.004755,56705.0,56704.0,0.011]
[1725561976579,1.710159,56705.0,56704.0,0.011]
[1725561976795,0.652053,56705.0,56704.0,0.011]
[1725561977014,0.1,56705.0,56704.0,0.011]
[1725561977525,0.1,56705.0,56704.0,0.1204]
[1725561977742,0.103,56706.0,56704.0,0.1204]
[1725561977952,0.1,56706.0,56704.0,0.1204]
[1725561978395,0.011,56705.0,56704.0,0.1214]
[1725561978631,0.011,56705.0,56704.0,0.277]
[1725561978867,0.185351,56705.0,56704.0,0.277]
[1725561979122,0.185351,56705.0,56704.0,0.279]
[1725561979349,0.176351,56705.0,56704.0,0.279]
[1725561980680,0.17635,56706.0,56704.0,0.279]
[1725561980904,0.176351,56705.0,56704.0,0.277]
[1725561981130,0.529053,56705.0,56704.0,0.279]
[1725561981370,0.529053,56705.0,56704.0,0.28]
[1725561981604,0.37111448,56709.0,56704.0,0.28]
[1725561981605,0.01843348,56709.0,56704.0,0.1596]
[1725561981835,0.01843348,56709.0,56705.0,0.126]
[1725561982082,0.01843348,56709.0,56706.0,0.1566]
[1725561982312,0.01843348,56709.0,56707.0,0.126]
[1725561982553,0.01843348,56709.0,56708.0,0.46246744]
[1725561982764,0.176333,56711.0,56708.0,0.2826]
[1725561982948,0.35266,56712.0,56708.0,0.2826]
[1725561982949,0.17633,56712.0,56708.0,0.2826]
[1725561983887,0.176334,56711.0,56708.0,0.2826]
[1725561984101,0.004,56709.0,56708.0,0.2826]
[1725561984737,0.002,56709.0,56708.0,0.2826]
[1725561984949,0.529015,56709.0,56708.0,0.2826]
[1725561985182,0.881692,56709.0,56708.0,0.2826]
[1725561985398,0.881692,56709.0,56708.0,0.2836]
[1725561985836,0.881692,56709.0,56708.0,0.2846]
[1725561986047,0.881692,56709.0,56708.0,0.2876]
[1725561986766,1.234369,56709.0,56708.0,0.005]
[1725561986980,1.1881407,56709.0,56708.0,0.005]
[1725561987192,1.1881407,56709.0,56704.0,0.001632]
[1725561987193,0.881755,56705.0,56704.0,0.001632]
[1725561988089,0.529053,56705.0,56704.0,0.285332]
[1725561988325,0.176351,56705.0,56704.0,0.285332]
[1725561988545,0.176351,56705.0,56704.0,0.289332]
[1725561988756,0.177351,56705.0,56704.0,0.295332]
[1725561988973,0.530053,56705.0,56704.0,0.295332]
[1725561996396,0.530053,56705.0,56704.0,0.011632]
[1725561996397,0.882755,56705.0,56704.0,0.011632]
[1725561996616,1.358457,56705.0,56704.0,0.011632]
[1725561997578,1.357457,56705.0,56704.0,0.005632]
[1725561998039,1.357457,56705.0,56704.0,0.001632]
[1725561998257,1.37589048,56705.0,56704.0,0.001632]
[1725561998479,1.38089048,56705.0,56704.0,0.001632]
[1725561998699,1.38389048,56705.0,56704.0,0.001632]
[1725562001320,1.43259048,56705.0,56704.0,0.001632]
[1725562001542,1.38389048,56705.0,56704.0,0.001632]
[1725562004340,1.42957729,56705.0,56704.0,0.001632]
[1725562004529,1.39096148,56705.0,56704.0,0.001632]
[1725562004959,1.42957517,56705.0,56704.0,0.001632]
[1725562005179,1.39096148,56705.0,56704.0,0.001632]
[1725562006112,1.39096148,56705.0,56704.0,0.278032]
[1725562010339,1.39096148,56705.0,56704.0,0.001632]
[1725562011419,1.798808,56705.0,56704.0,0.001632]
[1725562012489,1.74366348,56705.0,56704.0,0.001632]
[1725562014411,2.09636548,56705.0,56704.0,0.001632]
[1725562014632,2.18380001,56705.0,56704.0,0.001632]
[1725562014844,1.83109801,56705.0,56704.0,0.001632]
[1725562015317,1.83309801,56705.0,56704.0,0.001632]
[1725562015535,1.78239801,56705.0,56704.0,0.001632]
[1725562016375,1.86147506,56705.0,56704.0,0.001632]
[1725562017460,1.74366348,56705.0,56704.0,0.001632]
[1725562017674,1.74566348,56705.0,56704.0,0.001632]
[1725562018124,1.74366348,56705.0,56704.0,0.001632]
[1725562018360,1.79639506,56705.0,56704.0,0.001632]
[1725562019040,2.01516076,56702.0,56701.0,0.001632]
[1725562019250,2.13816076,56702.0,56701.0,0.001632]
[1725562020136,1.86449575,56702.0,56701.0,0.001632]
[1725562020399,0.50797275,56702.0,56701.0,0.296032]
[1725562020643,0.50797275,56702.0,56701.0,0.825122]
[1725562020894,0.50797275,56702.0,56701.0,1.530576]
[1725562021108,0.50697275,56702.0,56701.0,1.530576]
[1725562021332,0.50697275,56702.0,56701.0,1.177849]
[1725562021540,0.50797275,56702.0,56701.0,1.184849]
[1725562021753,0.50797275,56702.0,56701.0,1.530576]
[1725562021972,0.37847275,56702.0,56701.0,1.530576]
[1725562022182,0.13109771,56702.0,56701.0,1.542576]
[1725562023107,0.13209771,56702.0,56701.0,1.542576]
[1725562023562,0.12909771,56702.0,56701.0,1.530576]
[1725562023857,0.13009771,56702.0,56701.0,1.541576]
[1725562024082,0.13009771,56702.0,56701.0,1.555576]
[1725562024294,0.12909771,56702.0,56701.0,1.530576]
[1725562024502,0.12909771,56702.0,56701.0,1.555576]
[1725562024723,0.13009771,56702.0,56701.0,1.555576]
[1725562024938,0.13009771,56702.0,56701.0,1.541576]
[1725562025169,0.13009771,56702.0,56701.0,1.555576]
[1725562025385,0.13009771,56702.0,56701.0,1.541576]
[1725562026025,0.12909771,56702.0,56701.0,1.530576]
[1725562026236,0.12909771,56702.0,56701.0,1.541576]
[1725562026450,0.13009771,56702.0,56701.0,1.541576]
[1725562027123,0.000816,56709.0,56708.0,1.51699]
[1725562027364,0.000816,56709.0,56708.0,2.14333801]
[1725562027599,0.000816,56709.0,56708.0,2.14533801]
[1725562027838,0.000816,56709.0,56708.0,2.32084897]
[1725562028062,0.01843348,56724.0,56708.0,2.32084897]
[1725562028063,0.01843348,56724.0,56710.0,0.01]
[1725562028287,0.000816,56725.0,56724.0,0.814676]
[1725562028506,0.000816,56725.0,56724.0,1.79350901]
[1725562030180,0.001816,56725.0,56724.0,1.80550901]
[1725562030633,0.000816,56725.0,56724.0,1.79350901]
[1725562030842,0.000816,56725.0,56724.0,1.81150901]
[1725562031070,0.001816,56725.0,56724.0,1.81150901]
[1725562031568,0.001816,56725.0,56724.0,1.532844]
[1725562031785,0.001816,56725.0,56724.0,1.546844]
[1725562034635,0.001816,56725.0,56724.0,1.82250901]
[1725562036240,0.001816,56725.0,56724.0,1.82050901]
[1725562036719,0.001816,56725.0,56724.0,1.19426]
[1725562036928,0.001816,56725.0,56724.0,0.665384]
[1725562037153,0.001816,56725.0,56724.0,1.19426]
[1725562037383,0.000816,56725.0,56724.0,1.18126]
[1725562037609,0.000816,56725.0,56724.0,1.18026]
[1725562037837,0.000816,56725.0,56724.0,0.475092]
[1725562038060,0.000816,56725.0,56724.0,0.837676]
[1725562038290,0.000816,56725.0,56724.0,0.827676]
[1725562038722,0.000816,56725.0,56724.0,0.837676]
[1725562038938,0.000816,56725.0,56724.0,0.824676]
[1725562039128,0.000816,56725.0,56724.0,0.833676]
[1725562039928,0.000816,56725.0,56724.0,0.3048]
[1725562040162,0.000816,56725.0,56724.0,0.833676]
[1725562040391,0.176276,56729.0,56726.0,0.176285]
[1725562040633,0.176276,56729.0,56724.0,0.48109]
[1725562040634,0.176281,56728.0,56724.0,0.48109]
[1725562040844,0.176281,56728.0,56725.0,0.176289]
[1725562041512,0.352545,56731.0,56724.0,0.2948]
[1725562041752,0.881445,56725.0,56724.0,0.009]
[1725562041988,0.176289,56725.0,56721.0,0.1763]
[1725562042215,0.176277,56729.0,56725.0,0.176288]
[1725562042429,0.352542,56731.0,56725.0,0.007]
[1725562042648,0.352542,56731.0,56722.0,0.352593]
[1725562042649,0.176281,56728.0,56726.0,0.2743]
[1725562043792,0.176281,56728.0,56726.0,0.2703]
[1725562044469,0.26770195,56729.0,56726.0,0.2703]
[1725562044686,0.176282,56728.0,56726.0,0.2773]
[1725562045584,0.176282,56728.0,56726.0,0.2703]
[1725562045772,0.176277,56729.0,56726.0,0.2763]
[1725562046005,0.000816,56728.0,56726.0,0.2813]
[1725562046656,0.000816,56728.0,56726.0,0.2763]
[1725562046937,0.000816,56728.0,56727.0,0.176282]
[1725562047372,0.000816,56728.0,56727.0,0.88493734]
[1725562047591,0.000816,56728.0,56727.0,1.15543734]
[1725562048031,0.000816,56728.0,56727.0,1.16243734]
[1725562048286,0.000816,56728.0,56727.0,1.158912]
[1725562049133,0.000816,56728.0,56727.0,1.511477]
[1725562049365,0.000816,56728.0,56727.0,1.516477]
[1725562049578,0.000816,56728.0,56727.0,1.163912]
[1725562049997,0.000816,56728.0,56727.0,1.516477]
[1725562050385,0.000816,56728.0,56727.0,1.163912]
[1725562050639,0.000816,56728.0,56727.0,1.516477]
[1725562050878,0.000816,56728.0,56727.0,1.69198796]
[1725562051101,0.000816,56728.0,56727.0,1.70398796]
[1725562051323,0.00082,56732.0,56731.0,1.60843]
[1725562051545,0.00082,56732.0,56731.0,2.44620597]
[1725562051997,0.00082,56732.0,56731.0,2.81530823]
[1725562053124,0.00082,56733.0,56732.0,1.970937]
[1725562053349,0.00082,56733.0,56732.0,2.45381022]
[1725562053571,0.00082,56733.0,56732.0,2.55381022]
[1725562054222,0.00082,56735.0,56734.0,2.261671]
[1725562054438,0.00082,56735.0,56734.0,2.53718196]
[1725562054914,0.00082,56735.0,56734.0,2.55372284]
[1725562056250,0.00082,56735.0,56734.0,2.56772284]
[1725562056675,0.00082,56735.0,56734.0,2.58172284]
[1725562056882,0.00082,56735.0,56734.0,2.56772284]
[1725562057360,0.00082,56735.0,56734.0,2.58172284]
[1725562057591,0.00082,56735.0,56734.0,2.55372284]
[1725562057834,0.00082,56735.0,56734.0,2.56772284]
[1725562058061,0.00082,56735.0,56734.0,2.56772291]
[1725562058266,0.00082,56735.0,56734.0,2.55372291]
[1725562058483,0.00082,56735.0,56734.0,2.56772291]
[1725562058693,0.00082,56735.0,56734.0,2.58172291]
[1725562059108,0.00082,56735.0,56734.0,2.58123531]
[1725562059313,0.00082,56735.0,56734.0,2.59523531]
[1725562059746,0.12622,56758.0,56736.0,2.251299]
[1725562059747,0.000372,56737.0,56736.0,2.251299]
[1725562059928,0.000372,56737.0,56736.0,2.70047497]
[1725562060186,0.000372,56737.0,56736.0,2.81701592]
[1725562061108,0.000372,56737.0,56736.0,2.83101592]
[1725562061325,0.000372,56737.0,56736.0,2.81447497]
[1725562061543,0.000372,56737.0,56736.0,2.83101298]
[1725562061761,0.000372,56737.0,56736.0,2.84501298]
[1725562062700,0.000372,56737.0,56736.0,3.24991156]
[1725562062701,1e-06,56737.0,56736.0,3.24991156]
[1725562062905,0.00082,56758.0,56746.0,0.507947]
[1725562063122,0.00082,56758.0,56746.0,1.75159297]
[1725562063338,0.00082,56758.0,56746.0,2.45648697]
[1725562064237,0.00082,56758.0,56746.0,2.47048697]
[1725562064451,0.00082,56758.0,56746.0,2.48448697]
[1725562065311,0.00082,56758.0,56746.0,2.83693397]
[1725562072523,0.00082,56758.0,56746.0,2.48248697]
[1725562072759,0.00082,56758.0,56746.0,2.18882196]
[1725562072971,0.00082,56758.0,56746.0,2.48248697]
[1725562073877,0.00082,56758.0,56746.0,2.48448697]
[1725562074957,0.00082,56758.0,56746.0,2.48248697]
[1725562076071,0.00082,56758.0,56746.0,2.48448697]
[1725562078333,0.1341,56756.0,56746.0,2.48448697]
[1725562078733,0.00082,56758.0,56746.0,2.48448697]
[1725562079439,0.00082,56758.0,56746.0,2.48248697]
[1725562080103,0.2952,56750.0,56746.0,1.261564]
[1725562080359,0.1291,56750.0,56746.0,1.261564]
[1725562080562,0.125,56755.0,56746.0,2.34578697]
[1725562080790,0.125,56755.0,56746.0,2.07212196]
[1725562081020,0.125,56755.0,56746.0,1.78952196]
[1725562081252,0.125,56755.0,56746.0,1.43707496]
[1725562081699,0.125816,56747.0,56746.0,0.909117]
[1725562082140,0.302036,56747.0,56746.0,0.028]
[1725562082353,0.816477,56747.0,56746.0,0.028]
[1725562082575,1.168918,56747.0,56746.0,0.028]
[1725562082839,1.168918,56747.0,56743.0,0.00163]
[1725562082840,0.176229,56745.0,56743.0,0.00163]
[1725562083516,0.17623,56744.0,56743.0,0.00163]
[1725562083980,1.16985,56744.0,56743.0,0.00163]
[1725562084199,0.81739,56744.0,56743.0,0.00163]
[1725562084446,0.46493,56744.0,56743.0,0.00163]
[1725562084845,0.2887,56744.0,56743.0,0.00663]
[1725562085121,0.46493,56744.0,56743.0,0.00663]
[1725562085577,0.2887,56744.0,56743.0,0.00663]
[1725562085793,0.46493,56744.0,56743.0,0.00663]
[1725562085999,0.2887,56744.0,56743.0,0.00663]
[1725562086206,0.2887,56744.0,56743.0,0.01263]
[1725562086686,0.2887,56744.0,56743.0,0.00163]
[1725562086890,0.2887,56744.0,56743.0,0.00263]
[1725562087121,0.1321,56744.0,56743.0,0.531329]
[1725562087344,0.000816,56747.0,56746.0,0.176223]
[1725562087573,0.000816,56747.0,56743.0,0.00263]
[1725562087782,0.000816,56747.0,56745.0,0.176225]
[1725562087989,0.000816,56747.0,56746.0,0.176223]
[1725562088615,0.000816,56747.0,56746.0,0.52867]
[1725562089261,0.000816,56747.0,56746.0,0.176223]
[1725562089491,0.002816,56747.0,56746.0,0.176223]
[1725562089728,0.000816,56747.0,56746.0,0.52867]
[1725562089940,0.002816,56747.0,56746.0,0.176223]
[1725562090169,0.004816,56747.0,56746.0,0.176223]
[1725562090385,0.002816,56747.0,56746.0,0.176223]
[1725562090612,0.000816,56747.0,56746.0,0.53067]
[1725562091049,0.000816,56747.0,56746.0,0.53167]
[1725562092954,0.000816,56747.0,56746.0,0.003]
[1725562093174,0.000816,56747.0,56746.0,0.179223]
[1725562094240,0.000816,56747.0,56746.0,0.003]
[1725562094474,0.000816,56747.0,56746.0,0.179223]
[1725562094698,0.000816,56747.0,56746.0,0.003]
[1725562097296,0.177036,56747.0,56746.0,0.003]
[1725562097715,0.000816,56747.0,56746.0,0.003]
[1725562098377,0.000816,56747.0,56746.0,0.884117]
[1725562098590,0.000816,56747.0,56746.0,1.41559931]
[1725562098816,0.000816,56747.0,56746.0,1.41207496]
[1725562099263,0.000816,56747.0,56746.0,1.236564]
[1725562099467,0.000816,56747.0,56746.0,1.233564]
[1725562099670,0.000816,56747.0,56746.0,1.240564]
[1725562100294,0.000816,56747.0,56746.0,1.249564]
[1725562107657,0.000816,56747.0,56746.0,0.897117]
[1725562110500,0.000816,56747.0,56746.0,0.192223]
[1725562111273,0.177036,56747.0,56746.0,0.016]